[Event "Titled Tuesday Blitz August 22 Late 2023"]
[White "Estrada Nieto, Julian"]
[Black "Nakamura, Hikaru"]
[WhiteFideId "5101018"]
[BlackFideId "2016192"]
[WhiteElo "2526"]
[BlackElo "3222"]
[Result "0-1"]
[Round "1"]
[TimeControl "180+1"]
[Date "2023.08.22"]
[WhiteClock "0:00:08"]
[BlackClock "0:02:06"]
[Board "1"]

1. e4 {[%clk 0:03:00]}  a6 {[%clk 0:02:58]} 2. d4 {[%clk 0:02:59]}  c6 {[%clk 0:02:58]} 3. Nc3 {[%clk 0:02:59]}  d5 {[%clk 0:02:59]} 4. h3 {[%clk 0:02:59]}  dxe4 {[%clk 0:02:57]} 5. Nxe4 {[%clk 0:02:59]}  Bf5 {[%clk 0:02:57]} 6. Ng3 {[%clk 0:02:55]}  Bg6 {[%clk 0:02:57]} 7. Nf3 {[%clk 0:02:56]}  Nd7 {[%clk 0:02:56]} 8. Bd3 {[%clk 0:02:51]}  e6 {[%clk 0:02:48]} 9. O-O {[%clk 0:02:50]}  Ngf6 {[%clk 0:02:47]} 10. Bf4 {[%clk 0:02:49]}  Nd5 {[%clk 0:02:47]} 11. Bxg6 {[%clk 0:02:29]}  Nxf4 {[%clk 0:02:42]} 12. Bd3 {[%clk 0:02:27]}  Bd6 {[%clk 0:02:41]} 13. Ne4 {[%clk 0:02:26]}  Bc7 {[%clk 0:02:41]} 14. Re1 {[%clk 0:02:21]}  Qe7 {[%clk 0:02:40]} 15. Bf1 {[%clk 0:02:19]}  O-O-O {[%clk 0:02:40]} 16. c3 {[%clk 0:02:09]}  f5 {[%clk 0:02:40]} 17. Ng3 {[%clk 0:02:05]}  g6 {[%clk 0:02:39]} 18. Bc4 {[%clk 0:01:58]}  e5 {[%clk 0:02:34]} 19. dxe5 {[%clk 0:01:43]}  Nxe5 {[%clk 0:02:29]} 20. Nd4 {[%clk 0:01:06]}  c5 {[%clk 0:02:24]} 21. Qc1 {[%clk 0:00:58]}  cxd4 {[%clk 0:02:10]} 22. cxd4 {[%clk 0:00:50]}  Rxd4 {[%clk 0:02:10]} 23. Bf1 {[%clk 0:00:37]}  Qd6 {[%clk 0:02:08]} 24. Qc3 {[%clk 0:00:32]}  Rd8 {[%clk 0:02:06]} 25. Rac1 {[%clk 0:00:08]}  Kb8 {[%clk 0:02:06]} 0-1


[Site "https://www.chess.com"]

[Event "Titled Tuesday Blitz August 22 Late 2023"]
[White "Naroditsky, Daniel"]
[Black "Fernandez, Nelson Wilfredo"]
[WhiteFideId "2026961"]
[BlackFideId "8401594"]
[WhiteElo "3171"]
[BlackElo "2525"]
[Result "1-0"]
[Round "1"]
[TimeControl "180+1"]
[Date "2023.08.22"]
[WhiteClock "0:00:48"]
[BlackClock "0:00:00"]
[Board "2"]

1. e4 {[%clk 0:03:00]}  c6 {[%clk 0:02:59]} 2. d4 {[%clk 0:03:00]}  d5 {[%clk 0:02:59]} 3. exd5 {[%clk 0:03:00]}  cxd5 {[%clk 0:03:00]} 4. Nf3 {[%clk 0:03:01]}  Nc6 {[%clk 0:02:59]} 5. Bb5 {[%clk 0:03:01]}  Nf6 {[%clk 0:02:59]} 6. c4 {[%clk 0:02:59]}  a6 {[%clk 0:02:54]} 7. Bxc6+ {[%clk 0:02:58]}  bxc6 {[%clk 0:02:55]} 8. O-O {[%clk 0:02:53]}  a5 {[%clk 0:02:42]} 9. Ne5 {[%clk 0:02:52]}  Bd7 {[%clk 0:02:07]} 10. Nc3 {[%clk 0:02:48]}  e6 {[%clk 0:02:07]} 11. c5 {[%clk 0:02:45]}  Be7 {[%clk 0:02:07]} 12. Na4 {[%clk 0:02:46]}  O-O {[%clk 0:02:04]} 13. Nb6 {[%clk 0:02:46]}  Ra7 {[%clk 0:02:03]} 14. Bg5 {[%clk 0:02:47]}  Be8 {[%clk 0:02:03]} 15. Qa4 {[%clk 0:02:38]}  Qc7 {[%clk 0:01:59]} 16. Rfe1 {[%clk 0:02:26]}  h6 {[%clk 0:01:48]} 17. Bh4 {[%clk 0:02:24]}  g5 {[%clk 0:01:28]} 18. Bg3 {[%clk 0:02:24]}  Nh5 {[%clk 0:01:28]} 19. Nxf7 {[%clk 0:01:58]}  Nxg3 {[%clk 0:01:24]} 20. Nxh6+ {[%clk 0:01:58]}  Kg7 {[%clk 0:01:18]} 21. hxg3 {[%clk 0:01:59]}  Kxh6 {[%clk 0:01:18]} 22. Rxe6+ {[%clk 0:01:59]}  Rf6 {[%clk 0:01:15]} 23. Nxd5 {[%clk 0:01:58]}  cxd5 {[%clk 0:01:09]} 24. Rxf6+ {[%clk 0:01:53]}  Bxf6 {[%clk 0:01:06]} 25. Qxe8 {[%clk 0:01:54]}  Qe7 {[%clk 0:01:01]} 26. Qc6 {[%clk 0:01:51]}  Kg6 {[%clk 0:00:57]} 27. Qxd5 {[%clk 0:01:50]}  Rd7 {[%clk 0:00:58]} 28. Qg8+ {[%clk 0:01:50]}  Qg7 {[%clk 0:00:53]} 29. Qe8+ {[%clk 0:01:50]}  Qf7 {[%clk 0:00:53]} 30. Qe4+ {[%clk 0:01:50]}  Kg7 {[%clk 0:00:53]} 31. Rd1 {[%clk 0:01:47]}  Qd5 {[%clk 0:00:52]} 32. Qxd5 {[%clk 0:01:40]}  Rxd5 {[%clk 0:00:53]} 33. c6 {[%clk 0:01:41]}  Bd8 {[%clk 0:00:52]} 34. Kf1 {[%clk 0:01:39]}  Kf7 {[%clk 0:00:49]} 35. Ke2 {[%clk 0:01:32]}  Ke6 {[%clk 0:00:48]} 36. Ke3 {[%clk 0:01:32]}  Kd6 {[%clk 0:00:45]} 37. Rc1 {[%clk 0:01:30]}  g4 {[%clk 0:00:42]} 38. Ke4 {[%clk 0:01:28]}  Bb6 {[%clk 0:00:39]} 39. Rc4 {[%clk 0:01:28]}  Rb5 {[%clk 0:00:37]} 40. b3 {[%clk 0:01:27]}  Rb4 {[%clk 0:00:16]} 41. f3 {[%clk 0:01:21]}  gxf3 {[%clk 0:00:11]} 42. gxf3 {[%clk 0:01:21]}  Rb5 {[%clk 0:00:12]} 43. f4 {[%clk 0:01:10]}  Rh5 {[%clk 0:00:11]} 44. g4 {[%clk 0:01:10]}  Rh1 {[%clk 0:00:11]} 45. g5 {[%clk 0:01:10]}  Re1+ {[%clk 0:00:10]} 46. Kf5 {[%clk 0:01:11]}  Bd8 {[%clk 0:00:10]} 47. g6 {[%clk 0:01:03]}  Rg1 {[%clk 0:00:10]} 48. d5 {[%clk 0:00:53]}  Rg2 {[%clk 0:00:08]} 49. a3 {[%clk 0:00:52]}  Rg3 {[%clk 0:00:07]} 50. b4 {[%clk 0:00:52]}  a4 {[%clk 0:00:07]} 51. b5 {[%clk 0:00:52]}  Rb3 {[%clk 0:00:04]} 52. g7 {[%clk 0:00:45]}  Rg3 {[%clk 0:00:04]} 53. c7 {[%clk 0:00:46]}  Bxc7 {[%clk 0:00:03]} 54. Rc6+ {[%clk 0:00:47]}  Kd7 {[%clk 0:00:00]} 55. Rg6 {[%clk 0:00:48]} 1-0


[Site "https://www.chess.com"]

[Event "Titled Tuesday Blitz August 22 Late 2023"]
[White "Sarana, Alexey"]
[Black "Olenik Campa, Rudi"]
[WhiteFideId "24133795"]
[BlackFideId "14633264"]
[WhiteElo "3066"]
[BlackElo "2517"]
[Result "1-0"]
[Round "1"]
[TimeControl "180+1"]
[Date "2023.08.22"]
[WhiteClock "0:02:23"]
[BlackClock "0:01:03"]
[Board "8"]

1. d4 {[%clk 0:02:56]}  Nf6 {[%clk 0:02:59]} 2. c4 {[%clk 0:02:57]}  g6 {[%clk 0:02:59]} 3. Nc3 {[%clk 0:02:58]}  Bg7 {[%clk 0:02:59]} 4. e4 {[%clk 0:02:58]}  O-O {[%clk 0:03:00]} 5. Bd3 {[%clk 0:02:58]}  d6 {[%clk 0:02:57]} 6. Nge2 {[%clk 0:02:59]}  c5 {[%clk 0:02:57]} 7. d5 {[%clk 0:02:58]}  e6 {[%clk 0:02:57]} 8. Bg5 {[%clk 0:02:59]}  exd5 {[%clk 0:02:55]} 9. Nxd5 {[%clk 0:02:59]}  Be6 {[%clk 0:02:54]} 10. Nec3 {[%clk 0:02:58]}  Nc6 {[%clk 0:02:48]} 11. O-O {[%clk 0:02:55]}  Nd4 {[%clk 0:02:37]} 12. Kh1 {[%clk 0:02:48]}  a6 {[%clk 0:02:32]} 13. f4 {[%clk 0:02:48]}  Bxd5 {[%clk 0:01:47]} 14. Nxd5 {[%clk 0:02:46]}  Ne6 {[%clk 0:01:47]} 15. Bh4 {[%clk 0:02:29]}  h6 {[%clk 0:01:47]} 16. e5 {[%clk 0:02:27]}  dxe5 {[%clk 0:01:23]} 17. fxe5 {[%clk 0:02:27]}  Nxd5 {[%clk 0:01:24]} 18. Bxd8 {[%clk 0:02:27]}  Ne3 {[%clk 0:01:25]} 19. Qe2 {[%clk 0:02:26]}  Nxf1 {[%clk 0:01:24]} 20. Bf6 {[%clk 0:02:25]}  Ng3+ {[%clk 0:01:03]} 21. hxg3 {[%clk 0:02:23]} 1-0


[Site "https://www.chess.com"]

[Event "Titled Tuesday Blitz August 22 Late 2023"]
[White "arenal72"]
[Black "Bortnyk, Olexandr"]
[BlackFideId "14120828"]
[WhiteElo "2515"]
[BlackElo "3041"]
[Result "0-1"]
[Round "1"]
[TimeControl "180+1"]
[Date "2023.08.22"]
[WhiteClock "0:00:00"]
[BlackClock "0:00:38"]
[Board "11"]

1. e4 {[%clk 0:03:00]}  Nf6 {[%clk 0:02:59]} 2. e5 {[%clk 0:03:00]}  Nd5 {[%clk 0:02:58]} 3. c4 {[%clk 0:02:59]}  Nb6 {[%clk 0:02:56]} 4. d4 {[%clk 0:02:58]}  d6 {[%clk 0:02:55]} 5. exd6 {[%clk 0:02:59]}  exd6 {[%clk 0:02:56]} 6. Nc3 {[%clk 0:02:59]}  Be7 {[%clk 0:02:57]} 7. Nf3 {[%clk 0:02:55]}  O-O {[%clk 0:02:57]} 8. Bd3 {[%clk 0:02:54]}  Bg4 {[%clk 0:02:55]} 9. O-O {[%clk 0:02:48]}  Nc6 {[%clk 0:02:55]} 10. h3 {[%clk 0:02:33]}  Bh5 {[%clk 0:02:53]} 11. Bb1 {[%clk 0:02:14]}  Bf6 {[%clk 0:02:45]} 12. Be3 {[%clk 0:02:03]}  Bxf3 {[%clk 0:02:30]} 13. Qxf3 {[%clk 0:02:00]}  Nxc4 {[%clk 0:02:29]} 14. Nd5 {[%clk 0:01:53]}  Nxe3 {[%clk 0:02:05]} 15. fxe3 {[%clk 0:01:54]}  Bg5 {[%clk 0:02:05]} 16. g3 {[%clk 0:01:34]}  g6 {[%clk 0:01:55]} 17. h4 {[%clk 0:01:25]}  Bh6 {[%clk 0:01:53]} 18. h5 {[%clk 0:01:26]}  f5 {[%clk 0:01:35]} 19. Bd3 {[%clk 0:01:13]}  Kg7 {[%clk 0:01:25]} 20. Rae1 {[%clk 0:01:09]}  Rf7 {[%clk 0:01:18]} 21. hxg6 {[%clk 0:00:51]}  hxg6 {[%clk 0:01:17]} 22. Qf2 {[%clk 0:00:39]}  Qd7 {[%clk 0:01:12]} 23. Kg2 {[%clk 0:00:35]}  Rh8 {[%clk 0:01:09]} 24. e4 {[%clk 0:00:28]}  f4 {[%clk 0:00:56]} 25. Rh1 {[%clk 0:00:15]}  f3+ {[%clk 0:00:46]} 26. Kf1 {[%clk 0:00:13]}  Be3 {[%clk 0:00:44]} 27. Qxe3 {[%clk 0:00:07]}  Rxh1+ {[%clk 0:00:43]} 28. Kf2 {[%clk 0:00:08]}  Rh2+ {[%clk 0:00:40]} 29. Kg1 {[%clk 0:00:08]}  Qh3 {[%clk 0:00:39]} 30. Nf4 {[%clk 0:00:00]}  Rg2+ {[%clk 0:00:38]} 0-1


[Site "https://www.chess.com"]

[Event "Titled Tuesday Blitz August 22 Late 2023"]
[White "Martinez Alcantara, Jose Eduardo"]
[Black "szachmistrz2500"]
[WhiteFideId "3805662"]
[WhiteElo "3022"]
[BlackElo "2512"]
[Result "1-0"]
[Round "1"]
[TimeControl "180+1"]
[Date "2023.08.22"]
[WhiteClock "0:02:15"]
[BlackClock "0:00:42"]
[Board "14"]

1. e4 {[%clk 0:03:00]}  c5 {[%clk 0:02:59]} 2. Nf3 {[%clk 0:03:01]}  d6 {[%clk 0:02:59]} 3. c3 {[%clk 0:03:01]}  Nf6 {[%clk 0:02:57]} 4. h3 {[%clk 0:03:01]}  g6 {[%clk 0:02:55]} 5. Bd3 {[%clk 0:03:01]}  Bg7 {[%clk 0:02:54]} 6. Bc2 {[%clk 0:03:02]}  O-O {[%clk 0:02:49]} 7. O-O {[%clk 0:03:01]}  e5 {[%clk 0:02:47]} 8. d4 {[%clk 0:03:01]}  exd4 {[%clk 0:02:45]} 9. cxd4 {[%clk 0:03:02]}  Nc6 {[%clk 0:02:45]} 10. d5 {[%clk 0:03:01]}  Nb4 {[%clk 0:02:45]} 11. Nc3 {[%clk 0:03:02]}  Nxc2 {[%clk 0:02:44]} 12. Qxc2 {[%clk 0:03:03]}  Re8 {[%clk 0:02:40]} 13. Re1 {[%clk 0:02:59]}  a6 {[%clk 0:02:27]} 14. a4 {[%clk 0:02:58]}  Rb8 {[%clk 0:02:26]} 15. Bf4 {[%clk 0:02:54]}  b5 {[%clk 0:02:17]} 16. axb5 {[%clk 0:02:55]}  axb5 {[%clk 0:02:18]} 17. e5 {[%clk 0:02:56]}  Nh5 {[%clk 0:02:17]} 18. Bh2 {[%clk 0:02:56]}  dxe5 {[%clk 0:01:56]} 19. Nxe5 {[%clk 0:02:34]}  Bb7 {[%clk 0:01:42]} 20. Nc6 {[%clk 0:02:30]}  Bxc6 {[%clk 0:01:37]} 21. dxc6 {[%clk 0:02:25]}  Rxe1+ {[%clk 0:01:21]} 22. Rxe1 {[%clk 0:02:26]}  Rc8 {[%clk 0:01:20]} 23. c7 {[%clk 0:02:23]}  Qd7 {[%clk 0:01:20]} 24. Rd1 {[%clk 0:02:20]}  Bd4 {[%clk 0:01:08]} 25. Ne4 {[%clk 0:02:20]}  Qc6 {[%clk 0:01:02]} 26. Rxd4 {[%clk 0:02:19]}  f5 {[%clk 0:00:50]} 27. Qxc5 {[%clk 0:02:14]}  Qxc5 {[%clk 0:00:46]} 28. Nxc5 {[%clk 0:02:15]}  f4 {[%clk 0:00:42]} 29. Rd8+ {[%clk 0:02:15]} 1-0


[Site "https://www.chess.com"]

[Event "Titled Tuesday Blitz August 22 Late 2023"]
[White "Lima, Kleyton Alcantara"]
[Black "Grischuk, Alexander"]
[WhiteFideId "22718397"]
[BlackFideId "4126025"]
[WhiteElo "2511"]
[BlackElo "3015"]
[Result "1/2-1/2"]
[Round "1"]
[TimeControl "180+1"]
[Date "2023.08.22"]
[WhiteClock "0:00:08"]
[BlackClock "0:00:06"]
[Board "15"]

1. e4 {[%clk 0:03:00]}  e6 {[%clk 0:02:59]} 2. d4 {[%clk 0:03:00]}  d5 {[%clk 0:02:59]} 3. Nc3 {[%clk 0:03:01]}  Bb4 {[%clk 0:02:57]} 4. e5 {[%clk 0:03:01]}  c5 {[%clk 0:02:57]} 5. a3 {[%clk 0:02:59]}  Bxc3+ {[%clk 0:02:56]} 6. bxc3 {[%clk 0:03:00]}  Ne7 {[%clk 0:02:56]} 7. Qg4 {[%clk 0:02:59]}  cxd4 {[%clk 0:02:56]} 8. Bd3 {[%clk 0:02:49]}  Qa5 {[%clk 0:02:51]} 9. Ne2 {[%clk 0:02:45]}  Ng6 {[%clk 0:02:44]} 10. h4 {[%clk 0:02:41]}  Nc6 {[%clk 0:01:58]} 11. f4 {[%clk 0:02:40]}  h5 {[%clk 0:01:58]} 12. Qg3 {[%clk 0:02:31]}  Nce7 {[%clk 0:01:58]} 13. Bd2 {[%clk 0:02:23]}  dxc3 {[%clk 0:01:55]} 14. Nxc3 {[%clk 0:02:21]}  Qc5 {[%clk 0:01:32]} 15. Rb1 {[%clk 0:02:08]}  Bd7 {[%clk 0:01:05]} 16. Rxb7 {[%clk 0:01:56]}  Bc6 {[%clk 0:01:05]} 17. Rb1 {[%clk 0:01:00]}  O-O {[%clk 0:00:54]} 18. Qf2 {[%clk 0:00:51]}  d4 {[%clk 0:00:44]} 19. Ne4 {[%clk 0:00:49]}  Bxe4 {[%clk 0:00:44]} 20. Bxe4 {[%clk 0:00:50]}  Rab8 {[%clk 0:00:43]} 21. O-O {[%clk 0:00:49]}  a5 {[%clk 0:00:38]} 22. Kh1 {[%clk 0:00:42]}  Nf5 {[%clk 0:00:36]} 23. Bxf5 {[%clk 0:00:40]}  exf5 {[%clk 0:00:37]} 24. g3 {[%clk 0:00:34]}  Rxb1 {[%clk 0:00:32]} 25. Rxb1 {[%clk 0:00:34]}  Qxc2 {[%clk 0:00:33]} 26. Rb7 {[%clk 0:00:29]}  Qe4+ {[%clk 0:00:25]} 27. Qg2 {[%clk 0:00:29]}  Rc8 {[%clk 0:00:23]} 28. Qxe4 {[%clk 0:00:17]}  fxe4 {[%clk 0:00:22]} 29. Bxa5 {[%clk 0:00:17]}  d3 {[%clk 0:00:12]} 30. Rd7 {[%clk 0:00:16]}  Rc2 {[%clk 0:00:06]} 31. Kg1 {[%clk 0:00:14]}  Re2 {[%clk 0:00:04]} 32. Kf1 {[%clk 0:00:12]}  Re3 {[%clk 0:00:03]} 33. Bc3 {[%clk 0:00:11]}  Rxg3 {[%clk 0:00:02]} 34. e6 {[%clk 0:00:11]}  Rf3+ {[%clk 0:00:02]} 35. Kg1 {[%clk 0:00:10]}  Rxf4 {[%clk 0:00:02]} 36. e7 {[%clk 0:00:05]}  Nxe7 {[%clk 0:00:03]} 37. Rxe7 {[%clk 0:00:06]}  Rxh4 {[%clk 0:00:03]} 38. Kf2 {[%clk 0:00:06]}  f5 {[%clk 0:00:02]} 39. Rxg7+ {[%clk 0:00:05]}  Kf8 {[%clk 0:00:03]} 40. Rd7 {[%clk 0:00:03]}  Rf4+ {[%clk 0:00:03]} 41. Ke3 {[%clk 0:00:03]}  Rf3+ {[%clk 0:00:03]} 42. Kd4 {[%clk 0:00:04]}  h4 {[%clk 0:00:03]} 43. Ke5 {[%clk 0:00:04]}  e3 {[%clk 0:00:03]} 44. Kf6 {[%clk 0:00:04]}  Ke8 {[%clk 0:00:03]} 45. Re7+ {[%clk 0:00:04]}  Kd8 {[%clk 0:00:03]} 46. Ke6 {[%clk 0:00:03]}  d2 {[%clk 0:00:03]} 47. Rd7+ {[%clk 0:00:03]}  Kc8 {[%clk 0:00:03]} 48. Bxd2 {[%clk 0:00:04]}  exd2 {[%clk 0:00:03]} 49. Rxd2 {[%clk 0:00:05]}  h3 {[%clk 0:00:03]} 50. Rh2 {[%clk 0:00:05]}  Kc7 {[%clk 0:00:03]} 51. Ke5 {[%clk 0:00:06]}  Kb6 {[%clk 0:00:03]} 52. Kf6 {[%clk 0:00:05]}  Ka5 {[%clk 0:00:03]} 53. Kg5 {[%clk 0:00:06]}  Ka4 {[%clk 0:00:03]} 54. Kh4 {[%clk 0:00:06]}  Rxa3 {[%clk 0:00:02]} 55. Rxh3 {[%clk 0:00:06]}  Ra1 {[%clk 0:00:02]} 56. Rf3 {[%clk 0:00:06]}  Rh1+ {[%clk 0:00:02]} 57. Kg5 {[%clk 0:00:06]}  Kb4 {[%clk 0:00:03]} 58. Kxf5 {[%clk 0:00:07]}  Rc1 {[%clk 0:00:03]} 59. Kf4 {[%clk 0:00:07]}  Rc4+ {[%clk 0:00:04]} 60. Kg3 {[%clk 0:00:08]}  Rc3 {[%clk 0:00:05]} 61. Rxc3 {[%clk 0:00:08]}  Kxc3 {[%clk 0:00:06]} 1/2-1/2


[Site "https://www.chess.com"]

[Event "Titled Tuesday Blitz August 22 Late 2023"]
[White "Miszler, Levente"]
[Black "Sadhwani, Raunak"]
[WhiteFideId "763276"]
[BlackFideId "35093487"]
[WhiteElo "2508"]
[BlackElo "3014"]
[Result "0-1"]
[Round "1"]
[TimeControl "180+1"]
[Date "2023.08.22"]
[WhiteClock "0:00:00"]
[BlackClock "0:01:24"]
[Board "17"]

1. Nf3 {[%clk 0:03:00]}  Nf6 {[%clk 0:03:00]} 2. c4 {[%clk 0:02:58]}  g6 {[%clk 0:03:00]} 3. g3 {[%clk 0:02:57]}  Bg7 {[%clk 0:03:01]} 4. Bg2 {[%clk 0:02:57]}  O-O {[%clk 0:03:02]} 5. O-O {[%clk 0:02:55]}  c5 {[%clk 0:03:02]} 6. Nc3 {[%clk 0:02:54]}  Nc6 {[%clk 0:03:02]} 7. d3 {[%clk 0:02:55]}  e6 {[%clk 0:03:01]} 8. a3 {[%clk 0:02:53]}  d5 {[%clk 0:03:01]} 9. cxd5 {[%clk 0:02:53]}  exd5 {[%clk 0:03:02]} 10. d4 {[%clk 0:02:53]}  c4 {[%clk 0:02:58]} 11. Ne5 {[%clk 0:02:51]}  Be6 {[%clk 0:02:54]} 12. Nxc6 {[%clk 0:02:50]}  bxc6 {[%clk 0:02:55]} 13. e4 {[%clk 0:02:50]}  dxe4 {[%clk 0:02:54]} 14. Nxe4 {[%clk 0:02:51]}  Nxe4 {[%clk 0:02:55]} 15. Bxe4 {[%clk 0:02:51]}  Qxd4 {[%clk 0:02:56]} 16. Bxc6 {[%clk 0:02:46]}  Rab8 {[%clk 0:02:56]} 17. Qa4 {[%clk 0:02:32]}  c3 {[%clk 0:02:52]} 18. Qxd4 {[%clk 0:01:48]}  Bxd4 {[%clk 0:02:53]} 19. bxc3 {[%clk 0:01:34]}  Bxc3 {[%clk 0:02:53]} 20. Bf4 {[%clk 0:01:33]}  Rb6 {[%clk 0:02:49]} 21. Be4 {[%clk 0:01:18]}  Bxa1 {[%clk 0:02:48]} 22. Rxa1 {[%clk 0:01:19]}  Bh3 {[%clk 0:02:46]} 23. Be3 {[%clk 0:01:17]}  Re6 {[%clk 0:02:35]} 24. Bd5 {[%clk 0:01:14]}  Rd6 {[%clk 0:02:34]} 25. Bg2 {[%clk 0:01:09]}  Bxg2 {[%clk 0:02:33]} 26. Kxg2 {[%clk 0:01:10]}  Ra6 {[%clk 0:02:30]} 27. Bc5 {[%clk 0:01:07]}  Rc8 {[%clk 0:02:29]} 28. Bb4 {[%clk 0:01:07]}  Ra4 {[%clk 0:02:26]} 29. Rd1 {[%clk 0:01:04]}  a5 {[%clk 0:02:25]} 30. Be7 {[%clk 0:01:03]}  Re4 {[%clk 0:02:24]} 31. Rd7 {[%clk 0:01:02]}  Re8 {[%clk 0:02:16]} 32. Bc5 {[%clk 0:01:00]}  Rc4 {[%clk 0:02:14]} 33. Bb6 {[%clk 0:00:54]}  a4 {[%clk 0:02:13]} 34. Ra7 {[%clk 0:00:52]}  h5 {[%clk 0:02:11]} 35. h4 {[%clk 0:00:31]}  Rb8 {[%clk 0:02:08]} 36. Ba5 {[%clk 0:00:27]}  Rb2 {[%clk 0:02:01]} 37. Ra6 {[%clk 0:00:19]}  Kg7 {[%clk 0:01:49]} 38. Rd6 {[%clk 0:00:11]}  Ra2 {[%clk 0:01:39]} 39. Rd3 {[%clk 0:00:09]}  f6 {[%clk 0:01:34]} 40. Bb4 {[%clk 0:00:08]}  Rcc2 {[%clk 0:01:33]} 41. Rf3 {[%clk 0:00:08]}  Rc6 {[%clk 0:01:31]} 42. Re3 {[%clk 0:00:06]}  Rb2 {[%clk 0:01:26]} 43. Rf3 {[%clk 0:00:06]}  Kf7 {[%clk 0:01:25]} 44. Bc3 {[%clk 0:00:00]}  Rb3 {[%clk 0:01:24]} 0-1


[Site "https://www.chess.com"]

[Event "Titled Tuesday Blitz August 22 Late 2023"]
[White "Esipenko, Andrey"]
[Black "Mathieu, Phileas"]
[WhiteFideId "24175439"]
[BlackFideId "36048410"]
[WhiteElo "3013"]
[BlackElo "2508"]
[Result "0-1"]
[Round "1"]
[TimeControl "180+1"]
[Date "2023.08.22"]
[WhiteClock "0:00:00"]
[BlackClock "0:01:15"]
[Board "18"]

1. d4 {[%clk 0:03:00]}  Nf6 {[%clk 0:02:59]} 2. Nf3 {[%clk 0:03:00]}  e6 {[%clk 0:02:56]} 3. c3 {[%clk 0:02:58]}  c5 {[%clk 0:02:56]} 4. Bf4 {[%clk 0:02:57]}  Qb6 {[%clk 0:02:52]} 5. Qc1 {[%clk 0:02:54]}  Nc6 {[%clk 0:02:50]} 6. e3 {[%clk 0:02:54]}  d5 {[%clk 0:02:48]} 7. h3 {[%clk 0:02:51]}  Bd7 {[%clk 0:02:48]} 8. Nbd2 {[%clk 0:02:50]}  Rc8 {[%clk 0:02:47]} 9. Bd3 {[%clk 0:02:46]}  Be7 {[%clk 0:02:31]} 10. O-O {[%clk 0:02:45]}  O-O {[%clk 0:02:31]} 11. Qb1 {[%clk 0:02:42]}  Rfd8 {[%clk 0:02:24]} 12. a3 {[%clk 0:02:38]}  cxd4 {[%clk 0:02:22]} 13. exd4 {[%clk 0:02:38]}  Be8 {[%clk 0:02:23]} 14. Re1 {[%clk 0:02:36]}  h6 {[%clk 0:02:22]} 15. Qc2 {[%clk 0:02:32]}  Bd6 {[%clk 0:02:21]} 16. Bxd6 {[%clk 0:02:29]}  Rxd6 {[%clk 0:02:22]} 17. Nf1 {[%clk 0:02:27]}  Na5 {[%clk 0:02:18]} 18. Qe2 {[%clk 0:02:03]}  a6 {[%clk 0:02:15]} 19. a4 {[%clk 0:02:03]}  Nc4 {[%clk 0:02:11]} 20. Reb1 {[%clk 0:02:01]}  Rdd8 {[%clk 0:02:09]} 21. Ng3 {[%clk 0:01:54]}  Qc7 {[%clk 0:02:05]} 22. Re1 {[%clk 0:01:26]}  Ra8 {[%clk 0:01:54]} 23. Bxc4 {[%clk 0:01:23]}  dxc4 {[%clk 0:01:54]} 24. a5 {[%clk 0:01:23]}  Rdb8 {[%clk 0:01:38]} 25. Ne5 {[%clk 0:01:22]}  Bb5 {[%clk 0:01:38]} 26. Nh5 {[%clk 0:01:20]}  Nxh5 {[%clk 0:01:38]} 27. Qxh5 {[%clk 0:01:21]}  b6 {[%clk 0:01:38]} 28. Re3 {[%clk 0:01:13]}  Be8 {[%clk 0:01:34]} 29. Ng4 {[%clk 0:00:57]}  Kh7 {[%clk 0:01:17]} 30. Qe5 {[%clk 0:00:40]}  Qxe5 {[%clk 0:01:16]} 31. Nxe5 {[%clk 0:00:40]}  bxa5 {[%clk 0:01:16]} 32. Nxc4 {[%clk 0:00:00]}  a4 {[%clk 0:01:15]} 0-1


[Site "https://www.chess.com"]

[Event "Titled Tuesday Blitz August 22 Late 2023"]
[White "Matlakov, Maxim"]
[Black "Filgueiras, Nathan Felipe"]
[WhiteFideId "4168003"]
[BlackFideId "2188562"]
[WhiteElo "3001"]
[BlackElo "2506"]
[Result "1-0"]
[Round "1"]
[TimeControl "180+1"]
[Date "2023.08.22"]
[WhiteClock "0:00:49"]
[BlackClock "0:00:06"]
[Board "20"]

1. d4 {[%clk 0:03:00]}  Nf6 {[%clk 0:02:59]} 2. Nf3 {[%clk 0:03:00]}  e6 {[%clk 0:02:55]} 3. Bg5 {[%clk 0:03:00]}  h6 {[%clk 0:02:50]} 4. Bh4 {[%clk 0:02:59]}  b6 {[%clk 0:02:50]} 5. Nbd2 {[%clk 0:02:56]}  Bb7 {[%clk 0:02:49]} 6. e3 {[%clk 0:02:56]}  Be7 {[%clk 0:02:48]} 7. Bd3 {[%clk 0:02:53]}  c5 {[%clk 0:02:48]} 8. Qe2 {[%clk 0:02:49]}  O-O {[%clk 0:02:47]} 9. c3 {[%clk 0:02:48]}  d5 {[%clk 0:02:47]} 10. Ne5 {[%clk 0:02:44]}  Nc6 {[%clk 0:02:44]} 11. f4 {[%clk 0:02:44]}  Ne4 {[%clk 0:02:41]} 12. Bxe7 {[%clk 0:02:35]}  Nxe7 {[%clk 0:02:41]} 13. O-O {[%clk 0:02:18]}  Qc7 {[%clk 0:02:32]} 14. Nxe4 {[%clk 0:01:56]}  dxe4 {[%clk 0:02:31]} 15. Bc2 {[%clk 0:01:57]}  Rac8 {[%clk 0:02:25]} 16. Rad1 {[%clk 0:01:54]}  f6 {[%clk 0:02:00]} 17. Ng4 {[%clk 0:01:53]}  f5 {[%clk 0:01:58]} 18. Ne5 {[%clk 0:01:52]}  cxd4 {[%clk 0:01:58]} 19. Rxd4 {[%clk 0:01:47]}  Rcd8 {[%clk 0:01:55]} 20. Bb3 {[%clk 0:01:43]}  Bd5 {[%clk 0:01:51]} 21. Rfd1 {[%clk 0:01:38]}  Bxb3 {[%clk 0:01:47]} 22. axb3 {[%clk 0:01:34]}  Rxd4 {[%clk 0:01:46]} 23. Rxd4 {[%clk 0:01:32]}  Rd8 {[%clk 0:01:47]} 24. Qc4 {[%clk 0:01:30]}  Qc8 {[%clk 0:01:15]} 25. Rxd8+ {[%clk 0:01:20]}  Qxd8 {[%clk 0:01:16]} 26. Qxe6+ {[%clk 0:01:20]}  Kh7 {[%clk 0:01:15]} 27. h3 {[%clk 0:01:20]}  h5 {[%clk 0:00:59]} 28. Kh2 {[%clk 0:01:16]}  g6 {[%clk 0:00:55]} 29. Qf7+ {[%clk 0:01:13]}  Kh6 {[%clk 0:00:55]} 30. Qf6 {[%clk 0:01:12]}  Qe8 {[%clk 0:00:45]} 31. Nf7+ {[%clk 0:01:07]}  Kh7 {[%clk 0:00:44]} 32. Ng5+ {[%clk 0:01:08]}  Kg8 {[%clk 0:00:44]} 33. c4 {[%clk 0:00:59]}  Nc6 {[%clk 0:00:19]} 34. b4 {[%clk 0:00:59]}  Nd8 {[%clk 0:00:20]} 35. b5 {[%clk 0:00:54]}  Nb7 {[%clk 0:00:16]} 36. b4 {[%clk 0:00:52]}  Nd8 {[%clk 0:00:16]} 37. c5 {[%clk 0:00:51]}  Nb7 {[%clk 0:00:06]} 38. c6 {[%clk 0:00:49]} 1-0


[Site "https://www.chess.com"]